[Event "*** Titled Tuesday Blitz"]
[Site "Chess.com"]
[Date "2020.12.29"]
[Round "1"]
[White "Artem_Sadovsky"]
[Black "dosto07"]
[Result "1/2-1/2"]
[WhiteElo "2598"]
[BlackElo "2319"]
[TimeControl "180+1"]
[EndTime "10:08:16 PST"]
[Termination "Game drawn - insufficient material"]

1. Nf3 {[%clk 0:03:00.9]} 1... d5 {[%clk 0:02:58.9]} 2. c4 {[%clk 0:03:01.8]}
2... d4 {[%clk 0:02:57.6]} 3. e3 {[%clk 0:03:01.7]} 3... Nc6 {[%clk 0:02:58]} 4.
b4 {[%clk 0:02:58.5]} 4... dxe3 {[%clk 0:02:37.1]} 5. fxe3 {[%clk 0:02:59.4]}
5... Nxb4 {[%clk 0:02:36.4]} 6. d4 {[%clk 0:03:00.2]} 6... e6 {[%clk 0:02:34]}
7. Nc3 {[%clk 0:02:43.9]} 7... Nf6 {[%clk 0:02:31.4]} 8. a3 {[%clk 0:02:39.5]}
8... Nc6 {[%clk 0:02:30.3]} 9. Bd3 {[%clk 0:02:40.4]} 9... g6 {[%clk 0:02:27.5]}
10. O-O {[%clk 0:02:34]} 10... Bg7 {[%clk 0:02:27.4]} 11. Qe1 {[%clk 0:02:13.2]}
11... O-O {[%clk 0:02:26.7]} 12. Qh4 {[%clk 0:02:08.6]} 12... e5 {[%clk
0:02:12.9]} 13. d5 {[%clk 0:01:59.3]} 13... e4 {[%clk 0:02:11]} 14. Ng5 {[%clk
0:01:45.5]} 14... h6 {[%clk 0:01:58.5]} 15. Ngxe4 {[%clk 0:01:17.3]} 15... Nxe4
{[%clk 0:01:56.2]} 16. Qxe4 {[%clk 0:01:17.9]} 16... Bxc3 {[%clk 0:01:47.9]} 17.
Ra2 {[%clk 0:00:51.7]} 17... Ne7 {[%clk 0:01:41.4]} 18. Raf2 {[%clk 0:00:46.1]}
18... Bf5 {[%clk 0:01:36.7]} 19. Rxf5 {[%clk 0:00:46.7]} 19... Nxf5 {[%clk
0:01:35.5]} 20. Rxf5 {[%clk 0:00:47.5]} 20... Re8 {[%clk 0:01:26.9]} 21. Qg4
{[%clk 0:00:47.5]} 21... Bg7 {[%clk 0:01:13.4]} 22. Rxf7 {[%clk 0:00:24.4]}
22... Kxf7 {[%clk 0:01:12.7]} 23. Bxg6+ {[%clk 0:00:18.2]} 23... Kg8 {[%clk
0:01:05.7]} 24. Bb2 {[%clk 0:00:18.2]} 24... Re7 {[%clk 0:00:47.2]} 25. e4
{[%clk 0:00:07.5]} 25... Qd6 {[%clk 0:00:32.7]} 26. e5 {[%clk 0:00:05.9]} 26...
Qc5+ {[%clk 0:00:29.7]} 27. Bd4 {[%clk 0:00:06.2]} 27... Qxc4 {[%clk 0:00:25.3]}
28. h4 {[%clk 0:00:06.6]} 28... Rf8 {[%clk 0:00:18.8]} 29. Kh2 {[%clk
0:00:06.2]} 29... Qc1 {[%clk 0:00:18.3]} 30. Bf5 {[%clk 0:00:02.5]} 30... Qf1
{[%clk 0:00:12.9]} 31. Be6+ {[%clk 0:00:02.2]} 31... Rxe6 {[%clk 0:00:11.7]} 32.
Qxe6+ {[%clk 0:00:02.1]} 32... Qf7 {[%clk 0:00:10.5]} 33. Qg4 {[%clk 0:00:01.6]}
33... Qf4+ {[%clk 0:00:10.1]} 34. Qg3 {[%clk 0:00:02.2]} 34... Qxg3+ {[%clk
0:00:09.5]} 35. Kxg3 {[%clk 0:00:03.1]} 35... Re8 {[%clk 0:00:09.3]} 36. e6
{[%clk 0:00:01.9]} 36... b6 {[%clk 0:00:10.2]} 37. Be3 {[%clk 0:00:01.9]} 37...
Be5+ {[%clk 0:00:10]} 38. Kf3 {[%clk 0:00:02]} 38... Rf8+ {[%clk 0:00:10.6]} 39.
Ke4 {[%clk 0:00:02.5]} 39... Bg7 {[%clk 0:00:09.5]} 40. Bf4 {[%clk 0:00:02.9]}
40... Rc8 {[%clk 0:00:08.8]} 41. Bh2 {[%clk 0:00:02.2]} 41... Kf8 {[%clk
0:00:08.5]} 42. g4 {[%clk 0:00:02.6]} 42... Ke7 {[%clk 0:00:08.4]} 43. Bf4
{[%clk 0:00:02.9]} 43... c6 {[%clk 0:00:03.4]} 44. g5 {[%clk 0:00:03.1]} 44...
cxd5+ {[%clk 0:00:02.5]} 45. Kxd5 {[%clk 0:00:04]} 45... hxg5 {[%clk 0:00:02.6]}
46. Bxg5+ {[%clk 0:00:04.1]} 46... Ke8 {[%clk 0:00:01.9]} 47. Kd6 {[%clk
0:00:04.5]} 47... Bf8+ {[%clk 0:00:02]} 48. Ke5 {[%clk 0:00:04.6]} 48... Rc5+
{[%clk 0:00:02.2]} 49. Kf6 {[%clk 0:00:05]} 49... Rxg5 {[%clk 0:00:02.1]} 50.
hxg5 {[%clk 0:00:04.6]} 50... Be7+ {[%clk 0:00:02.1]} 51. Kf5 {[%clk 0:00:04.2]}
51... Kf8 {[%clk 0:00:02.2]} 52. a4 {[%clk 0:00:04]} 52... Kg7 {[%clk
0:00:03.1]} 53. g6 {[%clk 0:00:03.7]} 53... Bd8 {[%clk 0:00:03.8]} 54. Ke5
{[%clk 0:00:03]} 54... Be7 {[%clk 0:00:04.7]} 55. Kd5 {[%clk 0:00:03.2]} 55...
Kxg6 {[%clk 0:00:05.6]} 56. Kc6 {[%clk 0:00:03.4]} 56... Kf5 {[%clk 0:00:06.5]}
57. Kb7 {[%clk 0:00:03.6]} 57... Kxe6 {[%clk 0:00:07.4]} 58. Kxa7 {[%clk
0:00:03.2]} 58... Bc5 {[%clk 0:00:08.3]} 59. Ka6 {[%clk 0:00:03.4]} 59... Kd5
{[%clk 0:00:09]} 60. a5 {[%clk 0:00:02.9]} 60... bxa5 {[%clk 0:00:08.3]} 61.
Kxa5 {[%clk 0:00:03.3]} 1/2-1/2

[Event "*** Titled Tuesday Blitz"]
[Site "Chess.com"]
[Date "2020.12.29"]
[Round "1"]
[White "ural58"]
[Black "RobertoJBM"]
[Result "1/2-1/2"]
[WhiteElo "2396"]
[BlackElo "2716"]
[TimeControl "180+1"]
[EndTime "10:08:19 PST"]
[Termination "Game drawn - insufficient material"]

1. e4 {[%clk 0:02:46.4]} 1... c6 {[%clk 0:02:59]} 2. b3 {[%clk 0:02:45.7]} 2...
d5 {[%clk 0:02:59.9]} 3. Qe2 {[%clk 0:02:45.8]} 3... dxe4 {[%clk 0:02:59.5]} 4.
Nc3 {[%clk 0:02:46]} 4... Nf6 {[%clk 0:02:55.7]} 5. Nxe4 {[%clk 0:02:46]} 5...
Nxe4 {[%clk 0:02:52.6]} 6. Qxe4 {[%clk 0:02:46]} 6... Qd5 {[%clk 0:02:51.8]} 7.
Qe3 {[%clk 0:02:45.8]} 7... Bf5 {[%clk 0:02:45.9]} 8. Bb2 {[%clk 0:02:45.3]}
8... Qe4 {[%clk 0:02:20.4]} 9. d3 {[%clk 0:02:37.7]} 9... Qxe3+ {[%clk
0:02:18.5]} 10. fxe3 {[%clk 0:02:37.6]} 10... Nd7 {[%clk 0:02:15.9]} 11. Nf3
{[%clk 0:02:34.6]} 11... e6 {[%clk 0:02:11.6]} 12. Nh4 {[%clk 0:02:22.3]} 12...
Bg6 {[%clk 0:02:10.4]} 13. O-O-O {[%clk 0:02:19.9]} 13... Nf6 {[%clk 0:02:08.2]}
14. h3 {[%clk 0:02:18.5]} 14... Bd6 {[%clk 0:02:00.6]} 15. Be2 {[%clk
0:02:13.5]} 15... O-O {[%clk 0:01:56.4]} 16. Rhf1 {[%clk 0:02:10]} 16... Nd5
{[%clk 0:01:40.2]} 17. Nxg6 {[%clk 0:01:58.8]} 17... hxg6 {[%clk 0:01:35.6]} 18.
Rf3 {[%clk 0:01:58.7]} 18... Rad8 {[%clk 0:01:15]} 19. a3 {[%clk 0:01:43.5]}
19... Be7 {[%clk 0:01:11.7]} 20. Kb1 {[%clk 0:01:36]} 20... Bf6 {[%clk
0:01:10.6]} 21. Bxf6 {[%clk 0:01:19.9]} 21... gxf6 {[%clk 0:01:07.6]} 22. Kb2
{[%clk 0:01:16.3]} 22... f5 {[%clk 0:01:03.4]} 23. g4 {[%clk 0:01:13.1]} 23...
Kg7 {[%clk 0:01:00]} 24. Rg1 {[%clk 0:01:02.1]} 24... fxg4 {[%clk 0:00:57.3]}
25. hxg4 {[%clk 0:01:02.2]} 25... g5 {[%clk 0:00:55.2]} 26. c4 {[%clk
0:00:54.9]} 26... Ne7 {[%clk 0:00:53.5]} 27. d4 {[%clk 0:00:52.2]} 27... c5
{[%clk 0:00:48.7]} 28. Kc3 {[%clk 0:00:50.5]} 28... cxd4+ {[%clk 0:00:48.5]} 29.
exd4 {[%clk 0:00:50.6]} 29... Ng6 {[%clk 0:00:48.1]} 30. Rgf1 {[%clk 0:00:35.6]}
30... Nf4 {[%clk 0:00:35.5]} 31. Rxf4 {[%clk 0:00:34.6]} 31... gxf4 {[%clk
0:00:36.4]} 32. Rxf4 {[%clk 0:00:34.8]} 32... f6 {[%clk 0:00:34.4]} 33. Bd3
{[%clk 0:00:32.2]} 33... Rh8 {[%clk 0:00:29.1]} 34. Re4 {[%clk 0:00:31.3]} 34...
Kf7 {[%clk 0:00:22.2]} 35. c5 {[%clk 0:00:31.2]} 35... Rh3 {[%clk 0:00:20.3]}
36. Kc4 {[%clk 0:00:30.6]} 36... Rg3 {[%clk 0:00:18.9]} 37. a4 {[%clk
0:00:30.6]} 37... Ke7 {[%clk 0:00:17.9]} 38. b4 {[%clk 0:00:30.4]} 38... Rh8
{[%clk 0:00:16.2]} 39. d5 {[%clk 0:00:24.7]} 39... e5 {[%clk 0:00:16.4]} 40. d6+
{[%clk 0:00:24.6]} 40... Ke6 {[%clk 0:00:16.6]} 41. Kb5 {[%clk 0:00:23.8]} 41...
Kd5 {[%clk 0:00:15.4]} 42. Bb1 {[%clk 0:00:21.1]} 42... Rb3 {[%clk 0:00:12.6]}
43. Re1 {[%clk 0:00:18.6]} 43... Rb2 {[%clk 0:00:12.4]} 44. Be4+ {[%clk
0:00:17.2]} 44... Ke6 {[%clk 0:00:12.6]} 45. Bxb7 {[%clk 0:00:17.3]} 45... Rb8
{[%clk 0:00:12.8]} 46. c6 {[%clk 0:00:15]} 46... Kxd6 {[%clk 0:00:12.6]} 47.
Rd1+ {[%clk 0:00:15.6]} 47... Ke6 {[%clk 0:00:13]} 48. Ka5 {[%clk 0:00:13.2]}
48... Rc2 {[%clk 0:00:12.3]} 49. b5 {[%clk 0:00:13.3]} 49... e4 {[%clk
0:00:11.5]} 50. Ka6 {[%clk 0:00:13.4]} 50... Rf8 {[%clk 0:00:09.3]} 51. Kxa7
{[%clk 0:00:13.2]} 51... e3 {[%clk 0:00:09.8]} 52. b6 {[%clk 0:00:12.5]} 52...
f5 {[%clk 0:00:09.3]} 53. gxf5+ {[%clk 0:00:12]} 53... Rxf5 {[%clk 0:00:10.2]}
54. c7 {[%clk 0:00:12.5]} 54... Ra5+ {[%clk 0:00:10.1]} 55. Kb8 {[%clk
0:00:12.3]} 55... Rxa4 {[%clk 0:00:10.6]} 56. c8=Q+ {[%clk 0:00:12.4]} 56...
Rxc8+ {[%clk 0:00:11.3]} 57. Bxc8+ {[%clk 0:00:12.8]} 57... Ke5 {[%clk
0:00:12.2]} 58. b7 {[%clk 0:00:12.8]} 58... Rd4 {[%clk 0:00:12]} 59. Re1 {[%clk
0:00:12.2]} 59... Ke4 {[%clk 0:00:11.6]} 60. Bd7 {[%clk 0:00:11.4]} 60... Rxd7
{[%clk 0:00:11.4]} 61. Kc8 {[%clk 0:00:11.4]} 61... Rxb7 {[%clk 0:00:11.9]} 62.
Kxb7 {[%clk 0:00:11.4]} 62... Kd3 {[%clk 0:00:12.8]} 63. Rxe3+ {[%clk
0:00:10.9]} 63... Kxe3 {[%clk 0:00:13]} 1/2-1/2

[Event "*** Titled Tuesday Blitz"]
[Site "Chess.com"]
[Date "2020.12.29"]
[Round "1"]
[White "barbara25"]
[Black "KyronGriffith"]
[Result "1/2-1/2"]
[WhiteElo "2278"]
[BlackElo "2557"]
[TimeControl "180+1"]
[EndTime "10:08:25 PST"]
[Termination "Game drawn by stalemate"]

1. e4 {[%clk 0:03:00.2]} 1... c6 {[%clk 0:02:56.5]} 2. d4 {[%clk 0:02:59.2]}
2... d5 {[%clk 0:02:56.1]} 3. f3 {[%clk 0:02:57.7]} 3... dxe4 {[%clk 0:02:55]}
4. fxe4 {[%clk 0:02:57.3]} 4... e5 {[%clk 0:02:54.7]} 5. Nf3 {[%clk 0:02:57.3]}
5... Bg4 {[%clk 0:02:48.4]} 6. Bc4 {[%clk 0:02:56.8]} 6... Nd7 {[%clk
0:02:48.7]} 7. O-O {[%clk 0:02:55.7]} 7... Ngf6 {[%clk 0:02:47.2]} 8. c3 {[%clk
0:02:51.8]} 8... Bd6 {[%clk 0:02:45.3]} 9. Qc2 {[%clk 0:02:48.6]} 9... O-O
{[%clk 0:02:41.9]} 10. Bg5 {[%clk 0:02:48.4]} 10... b5 {[%clk 0:02:35.1]} 11.
Bb3 {[%clk 0:02:47.9]} 11... Qc7 {[%clk 0:02:32.3]} 12. Nbd2 {[%clk 0:02:46.7]}
12... c5 {[%clk 0:02:25]} 13. a4 {[%clk 0:02:29.4]} 13... c4 {[%clk 0:02:14.9]}
14. Ba2 {[%clk 0:02:28.6]} 14... a6 {[%clk 0:02:15.3]} 15. h3 {[%clk 0:02:25.4]}
15... Bxf3 {[%clk 0:02:07.2]} 16. Rxf3 {[%clk 0:02:23.9]} 16... Nh5 {[%clk
0:01:53.4]} 17. Raf1 {[%clk 0:02:18]} 17... h6 {[%clk 0:01:36.9]} 18. Be3 {[%clk
0:02:17.7]} 18... Rae8 {[%clk 0:01:29]} 19. R1f2 {[%clk 0:02:04.4]} 19... exd4
{[%clk 0:00:59.2]} 20. Bxd4 {[%clk 0:01:56.2]} 20... Bh2+ {[%clk 0:00:56.9]} 21.
Kh1 {[%clk 0:01:54.8]} 21... Be5 {[%clk 0:00:55]} 22. Kg1 {[%clk 0:01:46.8]}
22... Qd6 {[%clk 0:00:51]} 23. Bxe5 {[%clk 0:01:43.4]} 23... Nxe5 {[%clk
0:00:51.9]} 24. Rf5 {[%clk 0:01:41.1]} 24... Ng3 {[%clk 0:00:49.2]} 25. axb5
{[%clk 0:01:24.7]} 25... Nxf5 {[%clk 0:00:46.9]} 26. Rxf5 {[%clk 0:01:23.9]}
26... axb5 {[%clk 0:00:47]} 27. b3 {[%clk 0:01:08.8]} 27... g6 {[%clk
0:00:47.2]} 28. Rf1 {[%clk 0:01:06.8]} 28... Kg7 {[%clk 0:00:47.3]} 29. bxc4
{[%clk 0:01:06.9]} 29... bxc4 {[%clk 0:00:48]} 30. Kh1 {[%clk 0:01:00.3]} 30...
Qd3 {[%clk 0:00:46]} 31. Qc1 {[%clk 0:00:58.1]} 31... Rd8 {[%clk 0:00:44.2]} 32.
Nf3 {[%clk 0:00:48.1]} 32... Nxf3 {[%clk 0:00:42.3]} 33. gxf3 {[%clk 0:00:48.3]}
33... Qd2 {[%clk 0:00:41.3]} 34. Bxc4 {[%clk 0:00:43.9]} 34... Qxc1 {[%clk
0:00:36.7]} 35. Rxc1 {[%clk 0:00:43.8]} 35... Kf6 {[%clk 0:00:31.5]} 36. Bd5
{[%clk 0:00:43.9]} 36... Ke5 {[%clk 0:00:31.8]} 37. c4 {[%clk 0:00:44.2]} 37...
Kf4 {[%clk 0:00:29.9]} 38. Kg2 {[%clk 0:00:43.2]} 38... Rb8 {[%clk 0:00:30]} 39.
Rc2 {[%clk 0:00:43.6]} 39... Rb3 {[%clk 0:00:29.3]} 40. c5 {[%clk 0:00:44]}
40... Rxf3 {[%clk 0:00:29]} 41. c6 {[%clk 0:00:42.1]} 41... Rc8 {[%clk
0:00:24.4]} 42. c7 {[%clk 0:00:39.7]} 42... Rg3+ {[%clk 0:00:22]} 43. Kh2 {[%clk
0:00:39.5]} 43... Re3 {[%clk 0:00:13]} 44. Bb7 {[%clk 0:00:31.5]} 44... Rxc7
{[%clk 0:00:13.5]} 45. Rxc7 {[%clk 0:00:28.9]} 45... Re2+ {[%clk 0:00:13.9]} 46.
Kg1 {[%clk 0:00:28.7]} 46... f5 {[%clk 0:00:14.5]} 47. exf5 {[%clk 0:00:28.5]}
47... Kxf5 {[%clk 0:00:13.5]} 48. Rf7+ {[%clk 0:00:27.3]} 48... Kg5 {[%clk
0:00:13.7]} 49. Rf3 {[%clk 0:00:23.8]} 49... Re5 {[%clk 0:00:13.7]} 50. Kg2
{[%clk 0:00:22.6]} 50... h5 {[%clk 0:00:13.2]} 51. Kg3 {[%clk 0:00:19.3]} 51...
Rb5 {[%clk 0:00:11.8]} 52. Bc8 {[%clk 0:00:16.4]} 52... Rb6 {[%clk 0:00:11]} 53.
Rc3 {[%clk 0:00:16.3]} 53... Rb5 {[%clk 0:00:10.2]} 54. Bd7 {[%clk 0:00:16.3]}
54... Rd5 {[%clk 0:00:09.9]} 55. Be8 {[%clk 0:00:16.5]} 55... Rd6 {[%clk
0:00:09.1]} 56. Bb5 {[%clk 0:00:16.2]} 56... Kf6 {[%clk 0:00:09.5]} 57. Be2
{[%clk 0:00:16.2]} 57... Rd4 {[%clk 0:00:09.4]} 58. Rf3+ {[%clk 0:00:15.9]}
58... Ke5 {[%clk 0:00:09.1]} 59. Re3+ {[%clk 0:00:16]} 59... Re4 {[%clk
0:00:08.2]} 60. Rxe4+ {[%clk 0:00:15.8]} 60... Kxe4 {[%clk 0:00:09.1]} 61. Kh4
{[%clk 0:00:15.9]} 61... Ke5 {[%clk 0:00:08.4]} 62. Kg5 {[%clk 0:00:16]} 62...
Ke6 {[%clk 0:00:09.1]} 63. Bd3 {[%clk 0:00:16.2]} 63... Kf7 {[%clk 0:00:09.2]}
64. Kh6 {[%clk 0:00:14.9]} 64... Kg8 {[%clk 0:00:09.2]} 65. Bxg6 {[%clk
0:00:14.3]} 65... Kh8 {[%clk 0:00:10.1]} 66. h4 {[%clk 0:00:11.6]} 66... Kg8
{[%clk 0:00:11]} 67. Bxh5 {[%clk 0:00:11.6]} 67... Kh8 {[%clk 0:00:11.9]} 68.
Bg6 {[%clk 0:00:10.9]} 68... Kg8 {[%clk 0:00:12.8]} 69. Bh7+ {[%clk 0:00:10.6]}
69... Kh8 {[%clk 0:00:13.7]} 70. h5 {[%clk 0:00:11.2]} 1/2-1/2

[Event "*** Titled Tuesday Blitz"]
[Site "Chess.com"]
[Date "2020.12.29"]
[Round "1"]
[White "elohunter1999"]
[Black "Kolle05"]
[Result "1/2-1/2"]
[WhiteElo "2695"]
[BlackElo "2381"]
[TimeControl "180+1"]
[EndTime "10:08:27 PST"]
[Termination "Game drawn by repetition"]

1. d4 {[%clk 0:03:00.9]} 1... Nf6 {[%clk 0:02:57]} 2. c4 {[%clk 0:03:00.5]} 2...
g6 {[%clk 0:02:56.8]} 3. f3 {[%clk 0:02:57.3]} 3... Bg7 {[%clk 0:02:56.4]} 4. e4
{[%clk 0:02:56.8]} 4... d6 {[%clk 0:02:56.3]} 5. Nc3 {[%clk 0:02:56.8]} 5... O-O
{[%clk 0:02:56.1]} 6. Be3 {[%clk 0:02:56.8]} 6... c5 {[%clk 0:02:56]} 7. Nge2
{[%clk 0:02:54.1]} 7... Nc6 {[%clk 0:02:55.3]} 8. d5 {[%clk 0:02:51]} 8... Ne5
{[%clk 0:02:54.5]} 9. Ng3 {[%clk 0:02:51.4]} 9... e6 {[%clk 0:02:53.3]} 10. Be2
{[%clk 0:02:51]} 10... exd5 {[%clk 0:02:53.3]} 11. cxd5 {[%clk 0:02:51.9]} 11...
a6 {[%clk 0:02:53.6]} 12. a4 {[%clk 0:02:51.2]} 12... Rb8 {[%clk 0:02:50.1]} 13.
O-O {[%clk 0:02:47.1]} 13... Bd7 {[%clk 0:02:46.5]} 14. a5 {[%clk 0:02:37.7]}
14... b5 {[%clk 0:02:32.4]} 15. axb6 {[%clk 0:02:36.7]} 15... Rxb6 {[%clk
0:02:32.2]} 16. Ra2 {[%clk 0:02:29.3]} 16... Qb8 {[%clk 0:02:25.7]} 17. Qd2
{[%clk 0:02:22.6]} 17... Bb5 {[%clk 0:02:22.3]} 18. Nxb5 {[%clk 0:01:52.5]}
18... axb5 {[%clk 0:02:23.2]} 19. Bh6 {[%clk 0:01:52.9]} 19... Nc4 {[%clk
0:02:02.9]} 20. Bxc4 {[%clk 0:01:48.9]} 20... Bxh6 {[%clk 0:01:56.7]} 21. Qxh6
{[%clk 0:01:47.8]} 21... bxc4 {[%clk 0:01:57.6]} 22. Nf5 {[%clk 0:01:44.4]}
22... Nh5 {[%clk 0:01:28.8]} 23. g4 {[%clk 0:01:38.9]} 23... gxf5 {[%clk
0:01:04.1]} 24. gxh5 {[%clk 0:01:33.3]} 24... f6 {[%clk 0:01:03]} 25. Kh1 {[%clk
0:01:29.5]} 25... Rf7 {[%clk 0:00:57.5]} 26. Rfa1 {[%clk 0:00:47]} 26... Qf8
{[%clk 0:00:40.9]} 27. Ra8 {[%clk 0:00:42.4]} 27... Rb8 {[%clk 0:00:40.9]} 28.
Rg1+ {[%clk 0:00:34.1]} 28... Kh8 {[%clk 0:00:38.5]} 29. Rxb8 {[%clk 0:00:33.9]}
29... Qxb8 {[%clk 0:00:39.4]} 30. Qf4 {[%clk 0:00:33.7]} 30... Rg7 {[%clk
0:00:31.3]} 31. Ra1 {[%clk 0:00:29.7]} 31... Qxb2 {[%clk 0:00:28.5]} 32. Ra8+
{[%clk 0:00:27.6]} 32... Rg8 {[%clk 0:00:28.9]} 33. Rxg8+ {[%clk 0:00:27.2]}
33... Kxg8 {[%clk 0:00:29.8]} 34. Qxd6 {[%clk 0:00:26.1]} 34... Qc1+ {[%clk
0:00:28.9]} 35. Kg2 {[%clk 0:00:24.3]} 35... Qd2+ {[%clk 0:00:29.8]} 36. Kh3
{[%clk 0:00:22.4]} 36... c3 {[%clk 0:00:29.2]} 37. Qe6+ {[%clk 0:00:16.8]} 37...
Kg7 {[%clk 0:00:25.5]} 38. Qe7+ {[%clk 0:00:14.9]} 38... Kg8 {[%clk 0:00:21.8]}
39. d6 {[%clk 0:00:12.9]} 39... c2 {[%clk 0:00:19.7]} 40. d7 {[%clk 0:00:11.8]}
40... c1=Q {[%clk 0:00:19.9]} 41. d8=Q+ {[%clk 0:00:11.8]} 41... Qxd8 {[%clk
0:00:20.6]} 42. Qxd8+ {[%clk 0:00:12.7]} 42... Kf7 {[%clk 0:00:19.9]} 43. Qd7+
{[%clk 0:00:12.6]} 43... Kf8 {[%clk 0:00:19.5]} 44. Qxf5 {[%clk 0:00:12.6]}
44... Kg7 {[%clk 0:00:17.7]} 45. Qd7+ {[%clk 0:00:09.4]} 45... Kh6 {[%clk
0:00:17.5]} 46. Qf5 {[%clk 0:00:09.2]} 46... Qg5 {[%clk 0:00:12.2]} 47. Qxg5+
{[%clk 0:00:07.9]} 47... Kxg5 {[%clk 0:00:13.1]} 48. Kg3 {[%clk 0:00:08.4]}
48... c4 {[%clk 0:00:11.7]} 49. f4+ {[%clk 0:00:08.7]} 49... Kxh5 {[%clk
0:00:11.6]} 50. Kf3 {[%clk 0:00:08.9]} 50... Kh4 {[%clk 0:00:08.4]} 51. e5
{[%clk 0:00:08.5]} 51... fxe5 {[%clk 0:00:07.6]} 52. fxe5 {[%clk 0:00:09.4]}
52... Kg5 {[%clk 0:00:08.4]} 53. Ke4 {[%clk 0:00:09.1]} 53... c3 {[%clk
0:00:08.8]} 54. Kd3 {[%clk 0:00:08.2]} 54... Kf5 {[%clk 0:00:09.2]} 55. Kxc3
{[%clk 0:00:08.6]} 55... Kxe5 {[%clk 0:00:09.7]} 56. Kd3 {[%clk 0:00:08.7]}
56... Kf4 {[%clk 0:00:10.3]} 57. Ke2 {[%clk 0:00:09]} 57... Kg4 {[%clk
0:00:10.9]} 58. Kf2 {[%clk 0:00:09.5]} 58... Kh3 {[%clk 0:00:11.8]} 59. Kg1
{[%clk 0:00:10.1]} 59... h5 {[%clk 0:00:12.4]} 60. Kh1 {[%clk 0:00:11]} 60... h4
{[%clk 0:00:12.5]} 61. Kg1 {[%clk 0:00:11.9]} 61... Kg4 {[%clk 0:00:13.1]} 62.
Kh1 {[%clk 0:00:12.8]} 62... h3 {[%clk 0:00:13.7]} 63. Kg1 {[%clk 0:00:13.7]}
63... Kf3 {[%clk 0:00:14.5]} 64. Kf1 {[%clk 0:00:14]} 64... Ke3 {[%clk
0:00:14.2]} 65. Ke1 {[%clk 0:00:14.1]} 65... Kf3 {[%clk 0:00:14.7]} 66. Kf1
{[%clk 0:00:15]} 66... Ke3 {[%clk 0:00:15]} 67. Ke1 {[%clk 0:00:15.6]} 67... Kf3
{[%clk 0:00:15.4]} 68. Kf1 {[%clk 0:00:15.8]} 1/2-1/2

[Event "*** Titled Tuesday Blitz"]
[Site "Chess.com"]
[Date "2020.12.29"]
[Round "1"]
[White "Alexandr_Kholin"]
[Black "BikingBrian"]
[Result "1/2-1/2"]
[WhiteElo "2548"]
[BlackElo "2258"]
[TimeControl "180+1"]
[EndTime "10:08:27 PST"]
[Termination "Game drawn by repetition"]

1. d4 {[%clk 0:03:00.4]} 1... Nf6 {[%clk 0:02:57]} 2. c4 {[%clk 0:02:58.2]} 2...
g6 {[%clk 0:02:56]} 3. Nc3 {[%clk 0:02:57.3]} 3... Bg7 {[%clk 0:02:54.1]} 4. e4
{[%clk 0:02:56.7]} 4... d6 {[%clk 0:02:54.5]} 5. Nge2 {[%clk 0:02:56.4]} 5...
O-O {[%clk 0:02:52]} 6. Ng3 {[%clk 0:02:56]} 6... c6 {[%clk 0:02:47.9]} 7. Bd3
{[%clk 0:02:53]} 7... a6 {[%clk 0:02:48.3]} 8. a4 {[%clk 0:02:50.5]} 8... a5
{[%clk 0:02:47.4]} 9. O-O {[%clk 0:02:48.9]} 9... Na6 {[%clk 0:02:47.7]} 10. h3
{[%clk 0:02:47.7]} 10... Nb4 {[%clk 0:02:47.7]} 11. Be3 {[%clk 0:02:41.8]} 11...
e5 {[%clk 0:02:47.5]} 12. d5 {[%clk 0:02:40.6]} 12... cxd5 {[%clk 0:02:47.6]}
13. cxd5 {[%clk 0:02:38.7]} 13... Nd7 {[%clk 0:02:40.9]} 14. Rc1 {[%clk
0:02:31.9]} 14... b6 {[%clk 0:02:40.5]} 15. Bb5 {[%clk 0:02:29.8]} 15... Nc5
{[%clk 0:02:40.5]} 16. Bc6 {[%clk 0:01:21]} 16... Ba6 {[%clk 0:02:32.9]} 17.
Bxa8 {[%clk 0:01:18.5]} 17... Bxf1 {[%clk 0:02:32.1]} 18. Nxf1 {[%clk
0:01:17.1]} 18... Qxa8 {[%clk 0:02:31.5]} 19. Nd2 {[%clk 0:01:15.8]} 19... f5
{[%clk 0:02:27.1]} 20. Bxc5 {[%clk 0:01:13.1]} 20... bxc5 {[%clk 0:02:23.6]} 21.
Nc4 {[%clk 0:01:14]} 21... Bh6 {[%clk 0:02:06.7]} 22. Rb1 {[%clk 0:01:12.5]}
22... fxe4 {[%clk 0:01:54.1]} 23. Nxe4 {[%clk 0:01:10.2]} 23... Qxd5 {[%clk
0:01:53]} 24. Qxd5+ {[%clk 0:01:07]} 24... Nxd5 {[%clk 0:01:53.5]} 25. Nexd6
{[%clk 0:01:06.2]} 25... Rb8 {[%clk 0:01:35.8]} 26. Nxa5 {[%clk 0:01:02.5]}
26... Nc3 {[%clk 0:01:32.7]} 27. Nc6 {[%clk 0:00:54.6]} 27... Rb6 {[%clk
0:01:26]} 28. Nc4 {[%clk 0:00:51.9]} 28... Rxc6 {[%clk 0:01:20.7]} 29. bxc3
{[%clk 0:00:51.9]} 29... Ra6 {[%clk 0:01:21]} 30. a5 {[%clk 0:00:50]} 30... Bg7
{[%clk 0:01:19.5]} 31. Rb5 {[%clk 0:00:46.6]} 31... e4 {[%clk 0:01:18.4]} 32.
Rb3 {[%clk 0:00:41.4]} 32... Bf6 {[%clk 0:01:13.6]} 33. Kf1 {[%clk 0:00:41.1]}
33... Kg7 {[%clk 0:01:12.5]} 34. Ke2 {[%clk 0:00:40.7]} 34... Bd8 {[%clk
0:01:12.8]} 35. Ke3 {[%clk 0:00:38]} 35... Kf6 {[%clk 0:01:09.3]} 36. Kxe4
{[%clk 0:00:38.2]} 36... Bxa5 {[%clk 0:01:09.4]} 37. Kd5 {[%clk 0:00:36.2]}
37... Bc7 {[%clk 0:01:03.2]} 38. Rb7 {[%clk 0:00:34.1]} 38... Bf4 {[%clk
0:00:57.1]} 39. Rxh7 {[%clk 0:00:35]} 39... Ra2 {[%clk 0:00:56.3]} 40. g3 {[%clk
0:00:32.2]} 40... Bc1 {[%clk 0:00:55.5]} 41. Nd6 {[%clk 0:00:27.5]} 41... g5
{[%clk 0:00:48]} 42. Ke4 {[%clk 0:00:25.5]} 42... Ke6 {[%clk 0:00:46.3]} 43.
Rh6+ {[%clk 0:00:23.7]} 43... Kd7 {[%clk 0:00:45.8]} 44. Nb7 {[%clk 0:00:23.1]}
44... Rxf2 {[%clk 0:00:41.6]} 45. Nxc5+ {[%clk 0:00:22.5]} 45... Kc7 {[%clk
0:00:41]} 46. Nd3 {[%clk 0:00:21.5]} 46... Re2+ {[%clk 0:00:41.4]} 47. Kd4
{[%clk 0:00:21]} 47... g4 {[%clk 0:00:40.5]} 48. Rh7+ {[%clk 0:00:19.2]} 48...
Kc6 {[%clk 0:00:40.2]} 49. hxg4 {[%clk 0:00:20.1]} 49... Be3+ {[%clk 0:00:39]}
50. Kc4 {[%clk 0:00:20.4]} 50... Bd2 {[%clk 0:00:35.2]} 51. Nb4+ {[%clk
0:00:20.6]} 51... Kd6 {[%clk 0:00:33.9]} 52. Kd3 {[%clk 0:00:18.1]} 52... Rg2
{[%clk 0:00:33.9]} 53. Rg7 {[%clk 0:00:15.8]} 53... Be1 {[%clk 0:00:33.1]} 54.
Rg6+ {[%clk 0:00:15.4]} 54... Kd7 {[%clk 0:00:32.7]} 55. Nd5 {[%clk 0:00:15.5]}
55... Rxg3+ {[%clk 0:00:32.4]} 56. Ke4 {[%clk 0:00:15.9]} 56... Bxc3 {[%clk
0:00:30.5]} 57. Nxc3 {[%clk 0:00:13.6]} 57... Rxc3 {[%clk 0:00:30.1]} 58. Kf5
{[%clk 0:00:14.2]} 58... Ke7 {[%clk 0:00:29.4]} 59. Ra6 {[%clk 0:00:13.4]} 59...
Kf7 {[%clk 0:00:27.2]} 60. Ra7+ {[%clk 0:00:12]} 60... Kg8 {[%clk 0:00:26.7]}
61. Kg5 {[%clk 0:00:11.8]} 61... Rc6 {[%clk 0:00:26.6]} 62. Kh5 {[%clk
0:00:10.7]} 62... Rb6 {[%clk 0:00:26.9]} 63. g5 {[%clk 0:00:11.6]} 63... Rc6
{[%clk 0:00:27]} 64. g6 {[%clk 0:00:11.4]} 64... Rc1 {[%clk 0:00:27.1]} 65. Ra8+
{[%clk 0:00:10.6]} 65... Kg7 {[%clk 0:00:26.9]} 66. Ra7+ {[%clk 0:00:11.5]}
66... Kg8 {[%clk 0:00:27.4]} 67. Rf7 {[%clk 0:00:11.8]} 67... Rh1+ {[%clk
0:00:26.1]} 68. Kg5 {[%clk 0:00:12.7]} 68... Rg1+ {[%clk 0:00:26.3]} 69. Kf6
{[%clk 0:00:12.9]} 69... Rf1+ {[%clk 0:00:26.5]} 70. Kg5 {[%clk 0:00:12.5]}
70... Rg1+ {[%clk 0:00:26.6]} 71. Kh6 {[%clk 0:00:12.1]} 71... Rh1+ {[%clk
0:00:26.1]} 72. Kg5 {[%clk 0:00:11.9]} 72... Rg1+ {[%clk 0:00:26.5]} 1/2-1/2